[Event "45th FIDE Olympiad 2024"]
[Site "Budapest"]
[Date "2024.09.12"]
[Round "2.64"]
[White "Ivic, Velimir"]
[Black "Timoshin, Andrei"]
[Result "1-0"]
[ECO "A34"]
[WhiteElo "2599"]
[BlackElo "2230"]
[Annotator "TA"]
[PlyCount "53"]
[EventDate "2024.09.05"]
[EventType "team-tourn"]
[EventCountry "HUN"]
[SourceTitle "playchess.com"]
[Source "ChessBase"]
[SourceQuality "1"]
[WhiteTeam "Serbia"]
[BlackTeam "Estonia"]
[WhiteTeamCountry "SRB"]
[BlackTeamCountry "EST"]
[TimeControl "40/5400+30:1800+30"]

{[%evp 14,53,25,16,29,44,39,41,22,40,35,17,37,35,52,44,67,80,77,77,137,145,156,101,213,209,227,210,253,251,252,254,375,369,518,516,1249,1113,1283,1283,2529,2201]} 1. c4 {[%emt 0:00:08]} c5 {[%emt 0:03:58]} 2. Nf3 {[%emt 0:00:28]} Nf6 {[%emt 0:01:15]} 3. Nc3 {[%emt 0:01:33]} Nc6 {[%emt 0:01:00]} 4. g3 {[%emt 0:00:37]} d5 {[%emt 0:01:37]} 5. cxd5 {[%emt 0:00:08]} Nxd5 {[%emt 0:00:02]} 6. Bg2 {[%emt 0:00:14]} Nc7 {[%emt 0:00:25]} 7. d3 {[%emt 0:00:34]} e5 {[%emt 0:01:35]} 8. Nd2 {[%emt 0:00:27]} Be6 {[%emt 0:02:59]} 9. Bxc6+ {[%emt 0:05:28]} bxc6 {[%emt 0:00:11]} 10. b3 {[%emt 0:01:43]} Be7 {[%emt 0:07:50] White is slightly better.} 11. Bb2 {[%emt 0:03:13]} f6 {[%emt 0:07:32]} 12. Rc1 {[%emt 0:02:10]} O-O {[%emt 0:00:13]} 13. Na4 {[%emt 0:08:47]} Qd5 {[%emt 0:01:11]} 14. f3 {[%emt 0:03:10]} Rad8 {[%emt 0:32:17]} 15. Ba3 {[%emt 0:07:39]} Na6 {[%emt 0:02:31]} 16. Ne4 {[%emt 0:01:26]} g5 {[%emt 0:02:59]} ({Black should try} 16... Bc8) 17. Naxc5 $16 {[%emt 0:12:39] A dynamic duo of knights.} Bc8 {[%emt 0:01:06]} 18. Rc4 {[%emt 0:08:23]} (18. g4 $142 $1) 18... g4 {[%emt 0:18:52]} (18... f5 $16 19. Nc3 Qf7) 19. Qc1 $18 {[%emt 0:11:36] aiming for Nxa6.} Nc7 {[%emt 0:06:09]} 20. fxg4 {[%emt 0:02:13]} Bxg4 {[%emt 0:02:03] [#]} 21. Nxf6+ $1 {[%emt 0:04:16][%mdl 512]} Rxf6 {[%emt 0:00:14]} 22. Rxg4+ {[%emt 0:00:06]} Kh8 {[%emt 0:00:05] [#]} (22... Kf7 {was worth a try.} 23. Ne4 Qa5+ 24. b4 Bxb4+ 25. Bxb4 Qxb4+ 26. Kd1 Qa4+ 27. Qc2 Qxc2+ 28. Kxc2 Rg6) 23. Ne4 $1 {[%emt 0:01:50]} Qa5+ {[%emt 0:01:53] [#]} (23... Bxa3 {is a better defense.} 24. Qxa3 Nb5) 24. Kd1 $1 {[%emt 0:02:25] White is clearly winning.} (24. b4 Bxb4+ 25. Bxb4 Qxb4+ 26. Kd1 Rf5 $16) 24... Rf7 {[%emt 0:03:54]} (24... Qxa3 $142 25. Qxa3 (25. Nxf6 Qxc1+ 26. Kxc1 Bxf6 $16) 25... Bxa3 26. Nxf6 Be7) 25. Bxe7 {[%emt 0:00:57]} ({And not} 25. Qxc6 Bxa3 26. Ng5 Rg7 $17) 25... Rxe7 {[%emt 0:00:02]} 26. Qh6 {[%emt 0:02:34]} (26. Qxc6 Nd5 27. Qc1 Qxa2 $14) 26... Nd5 {[%emt 0:00:47] Against Qf6+} 27. Rf1 {[%emt 0:00:23] Weighted Error Value: White=0.05 (flawless) /Black=0.55.  Mistake:       	White=1     	Black=5      OK:         	White=11    	Black=5      Best:        	White=2     	---        Strong:       	White=2     	---} (27. Qxc6 $2 {perishes.} Ne3+ (27... Qxa2 $2 28. Qc1 $17) 28. Kc1 Rc7 $19 (28... Nxg4 $2 29. Kb2 $19) (28... Nxg4 $2 29. Kb1 $19)) 1-0

[Event "45th FIDE Olympiad 2024"]
[Site "Budapest"]
[Date "2024.09.12"]
[Round "2.65"]
[White "Martirosyan, Haik M."]
[Black "Henderson De La Fuente, Lance"]
[Result "1-0"]
[ECO "E73"]
[WhiteElo "2667"]
[BlackElo "2519"]
[Annotator "TA"]
[PlyCount "201"]
[EventDate "2024.09.05"]
[EventType "team-tourn"]
[EventCountry "HUN"]
[SourceTitle "playchess.com"]
[Source "ChessBase"]
[SourceQuality "1"]
[WhiteTeam "Armenia"]
[BlackTeam "Andorra"]
[WhiteTeamCountry "ARM"]
[BlackTeamCountry "AND"]
[TimeControl "40/5400+30:1800+30"]

{[%evp 110,201,124,124,124,124,140,124,696,703,703,703,703,703,703,703,710,361,703,703,703,352,689,658,460,144,703,696,689,689,689,689,670,121,662,8,8,8,8,8,8,0,8,0,8,8,8,8,8,8,8,8,8,8,8,8,8,8,8,8,8,8,8,42,2789,2482,29966,29964,29954,5489,29977,29976,29975,29977,29979,29980,29980,29981,29981,29979,29979,29980,29980,29981,29981,29980,29980,29981,29981,29982,29991,29992,29997,29998]} 1. d4 Nf6 2. c4 g6 3. Nc3 Bg7 4. e4 d6 5. Be2 O-O 6. Be3 Nc6 7. d5 Ne5 {E73: King's Indian: Averbakh Variation without 6...c5.} 8. Nf3 Nxf3+ 9. Bxf3 Nd7 10. O-O a5 $146 ({Predecessor:} 10... e5 11. dxe6 fxe6 12. Be2 b6 13. Qd2 Bb7 14. f3 Qe7 15. Rac1 a6 16. b4 a5 17. a3 axb4 18. axb4 {½-½ Grachev,B (2593)-Tsydypov,Z (2534) RUS Cup final 2022 (3.3)}) 11. Be2 b6 12. Rc1 Nc5 13. Bd4 Bxd4 14. Qxd4 e5 15. dxe6 fxe6 16. e5 Bb7 17. exd6 Qxd6 18. Qxd6 cxd6 19. Rfd1 Rad8 20. Rd4 e5 21. Rd2 Kf7 22. Re1 Ke7 23. Bd1 g5 24. Re3 h6 25. b3 Bc6 26. Bc2 Rf6 27. h3 Rf4 28. f3 Rff8 29. a3 Rc8 30. Kh2 h5 31. b4 Ne6 32. Be4 h4 33. Bxc6 Rxc6 34. Nd5+ Kf7 35. bxa5 bxa5 36. Rb3 Rfc8 37. Rb7+ Nc7 38. Ra7 Kf8 39. Nf6 Ke7 40. Nd5+ Kf8 41. Ne3 Ra8 42. Rxa8+ Nxa8 43. Nf5 Nb6 44. Rxd6 Rxd6 45. Nxd6 Ke7 46. c5 Ke6 47. Nb7 Nc4 48. c6 Nxa3 49. Nxa5 Kd6 50. Kg1 Kc7 51. Kf2 Kb6 52. Kf1 Nc2 53. Nc4+ Kxc6 54. Nxe5+ Kd5 55. Nf7 Ke6 56. Nxg5+ Kf5 57. Ne4 Kf4 58. Kf2 Nd4 $2 {[%mdl 8192]} (58... Nb4 $16 59. Nc5 Nd5 60. Nd3+ Kf5) 59. Nc5 $18 Nc2 60. Nd3+ Kf5 61. Ke2 Na3 62. Nb4 Nc4 63. Nd5 Ke5 64. Ne3 Nd6 65. Kf2 $1 Kf4 66. Nd5+ $1 Ke5 {[#]} 67. Nc3 $2 (67. Ne7 $1 $18 {[%cal Re7g6]}) 67... Kf5 $2 {[%mdl 8192]} (67... Nc4 $16 68. Na2 Nb2) 68. Ne2 Nc4 69. g4+ hxg3+ 70. Kxg3 (70. Nxg3+ Kg5 $11) 70... Ne3 {[#]} 71. h4 $2 (71. Kf2 $1 $18 {[%cal Rf2e3] and the rest is easy.} Nd5 72. Kg2) 71... Nd5 $16 72. f4 $2 ({White should play} 72. Kh3 $18 {Threatens to win with Kg3.} Kg6 73. Kh2) 72... Kg6 $1 $11 73. Nd4 Kh5 $1 74. Nf5 (74. f5 $5 Ne3 $8 75. Kf4 Ng2+ 76. Ke5 Nxh4 77. f6 Ng6+ 78. Ke6 $11) 74... Kg6 $1 75. Nd4 Kh5 $1 76. Ne2 (76. f5 $5 Ne3 $8 77. Kh3 $11) 76... Kg6 $1 77. Kg4 Nf6+ 78. Kh3 (78. Kf3 $5 Kh5 $8 79. Kg3 Ne4+ 80. Kh3 Nf2+ 81. Kg3 Ne4+ 82. Kh3 Nf2+ 83. Kg3 Ne4+ $11) 78... Kf5 79. Kg3 Ke4 80. Nc3+ Kd4 81. Nd1 Ke4 82. Nf2+ Kf5 83. Kf3 Nd5 84. Nd3 Nf6 85. Ne1 Kg6 86. Ng2 Kf5 $2 {[%mdl 8192]} (86... Nh5 $14) 87. Ne3+ $18 Kg6 88. f5+ Kh5 89. Ng2 Ng8 90. Kf4 Kh6 91. Ke5 Kg7 92. Ke6 Nf6 93. Nf4 Ng4 94. h5 Nh6 95. Ng6 Ng4 96. Ne5 Nh6 97. Nd7 Kh7 98. Kf6 Ng4+ 99. Kg5 Ne3 100. f6 Kg8 101. Kg6 1-0

[Event "45th FIDE Olympiad 2024"]
[Site "Budapest"]
[Date "2024.09.12"]
[Round "2.65"]
[White "Houssein, Mohamed Bilal"]
[Black "Wu, Li"]
[Result "0-1"]
[ECO "B32"]
[WhiteElo "1870"]
[BlackElo "2325"]
[Annotator "TA"]
[PlyCount "76"]
[EventDate "2024.09.05"]
[EventType "team-tourn"]
[EventCountry "HUN"]
[SourceTitle "playchess.com"]
[Source "ChessBase"]
[SourceQuality "1"]
[WhiteTeam "Djibouti"]
[BlackTeam "Isle of Man"]
[WhiteTeamCountry "DJI"]
[BlackTeamCountry "IOM"]
[TimeControl "40/5400+30:1800+30"]

{[%evp 10,76,29,25,28,25,25,27,35,32,53,49,133,138,137,132,157,182,347,273,382,378,584,440,481,451,476,477,488,467,500,454,683,621,526,306,299,191,304,296,477,452,766,356,503,493,532,502,477,218,385,74,64,79,91,77,154,-270,-270,-343,-218,-211,-211,-1785,-1395,-29993,-29994,-29995,-29996]} 1. e4 c5 2. Nf3 {[%cal Bg1f3,Bf3d4,Bd4b5][%mdl 32]} Nc6 3. d4 cxd4 4. Nxd4 e5 5. Nb5 d6 6. c4 g6 7. Be2 Be6 8. O-O Rc8 {White has an edge.} 9. f4 a6 10. f5 $1 axb5 ({Black should try} 10... gxf5 $14 11. exf5 Bxc4) 11. fxe6 $16 fxe6 12. Na3 (12. cxb5 $6 Nd4 13. Nc3 Bh6 $14) 12... Nd4 13. Nxb5 (13. cxb5 $6 Nf6 $11) 13... Qb6 (13... Nf6) 14. Be3 Bg7 15. b4 Ke7 (15... Nf6 {was called for.} 16. c5 (16. Bxd4 exd4 17. e5 d3+ 18. Kh1 dxe2 $18) 16... dxc5 17. bxc5 Qxc5 18. Nxd4 (18. Rc1 Qxc1 19. Bxc1 Rxc1 $18) 18... O-O (18... exd4 $2 19. Rc1 $18)) 16. a4 {[%cal Ba2a4,Ba4a5][%mdl 32]} Nf6 17. a5 (17. Bxd4 exd4 18. a5 (18. Qxd4 $2 Qxd4+ 19. Nxd4 Nxe4 $19) (18. Nxd4 $2 Nxe4 19. c5 Qxb4 $19) 18... Qc6 $18) 17... Qc6 18. Nxd4 exd4 19. Bxd4 (19. Qxd4 Qxe4 20. Qd2 Rhd8 $18) 19... e5 20. Bb6 Rhf8 (20... Qxe4 $142 21. Bf3 Qxc4 22. Bxb7 Qxb4 23. Bxc8 Rxc8) 21. c5 $18 Nxe4 22. cxd6+ Qxd6 23. Qb3 Nd2 (23... Rc3 {keeps fighting.} 24. Qb2 Bh6 25. Rxf8 Kxf8) 24. Rxf8 $1 Nxb3 (24... Rc1+ 25. Qd1 (25. Rxc1 Nxb3 26. Rd1 Bxf8 $18) 25... Rxd1+ 26. Rxd1 Bxf8 (26... Kxf8 $2 27. Bc5 $18)) 25. Rxc8 e4 (25... Nxa1 $2 26. Bc5) (25... Qd7 $142) 26. Bd8+ {A strong pair of Bishops.} (26. Rd1 $142 Qxb4 27. Rc7+ Kf6 28. Rxb7 (28. Rf1+ Ke5 $18)) 26... Ke6 (26... Qxd8 {might work better.} 27. Rxd8 Kxd8) 27. Bg4+ Kd5 28. Rd1+ Bd4+ 29. Kh1 (29. Rxd4+ $142 Nxd4 (29... Kxd4 $2 {is the wrong capture.} 30. Bb6+ Kd5 31. Rd8 $18) 30. Rc5+ Qxc5 31. bxc5) 29... h5 $2 {[#]} (29... Qxb4 {was worth a try.} 30. Rc7 Nd2) 30. Bb6 $2 hxg4 $16 31. Rd8 Qxd8 32. Bxd8 {[%mdl 4096] Endgame. Threatens to win with b5. KRB-KBN} e3 {[#]} (32... Kc4 $142) 33. g3 $2 {Loses the game.} (33. Bg5 $1 $16 {[%cal Rg5e3]} Kc4 34. Bxe3 Bxe3 35. Rd7) 33... Kc4 $19 {[%cal Od4c3] Hoping for ...Bc3!} 34. Kg2 e2 (34... Kxb4 $2 {perishes.} 35. Kf1 $18) 35. Re1 Kd3 {And now ...Bc3 would win.} 36. Bg5 $2 (36. b5 Bc3 (36... Kd2 $2 37. Rh1 $19) 37. Rxe2 Kxe2 38. a6 bxa6 39. bxa6) 36... Bc3 {[%csl LRb4,LRe1]} 37. Kf2 Bxe1+ 38. Kxe1 Nd4 {Weighted Error Value: White=1.06/Black=0.78.  Loses game:     	White=1     	---        Missed win:     	White=1     	---        Mistake:       	White=3     	Black=10     Inaccurate:     	White=2     	Black=2      OK:         	White=7     	Black=9      Best:        	White=4     	Black=3      Strong:       	White=2     	---} 0-1

[Event "45th FIDE Olympiad 2024"]
[Site "Budapest"]
[Date "2024.09.12"]
[Round "2.66"]
[White "Fluvia Poyatos, Jordi"]
[Black "Sargsyan, Shant"]
[Result "1/2-1/2"]
[ECO "C47"]
[WhiteElo "2438"]
[BlackElo "2649"]
[Annotator "TA"]
[PlyCount "60"]
[EventDate "2024.09.05"]
[EventType "team-tourn"]
[EventCountry "HUN"]
[SourceTitle "playchess.com"]
[Source "ChessBase"]
[SourceQuality "1"]
[WhiteTeam "Andorra"]
[BlackTeam "Armenia"]
[WhiteTeamCountry "AND"]
[BlackTeamCountry "ARM"]
[TimeControl "40/5400+30:1800+30"]

{[%evp 24,60,11,14,18,25,20,26,15,15,35,29,33,44,39,39,47,39,54,47,50,49,52,47,50,51,45,45,77,77,77,62,69,76,62,67,81,52,54]} 1. e4 e5 2. Nf3 Nc6 3. Nc3 Nf6 4. d4 exd4 5. Nxd4 Bb4 6. Nxc6 bxc6 7. Bd3 O-O 8. O-O d5 9. exd5 cxd5 10. Bg5 c6 11. Qf3 Bd6 12. Rae1 Rb8 13. Nd1 h6 14. Bxf6 Qxf6 15. Qxf6 gxf6 {White has an edge.} 16. b3 a5 17. Ne3 a4 18. Nf5 Bxf5 19. Bxf5 axb3 20. axb3 Rfd8 21. Re3 Kg7 22. Rd1 Be5 23. g3 Rb4 24. Kg2 Kf8 25. f4 Bd6 26. Ra1 Bc5 27. Re2 Rb7 28. Ra6 Rc7 29. Re1 {White is more active.} Kg7 30. Bd3 Bd4 {Weighted Error Value: White=0.03 (flawless) /Black=0.06 (flawless) .  Inaccurate:     	White=1     	Black=1      OK:         	White=8     	Black=7} 1/2-1/2

[Event "45th FIDE Olympiad 2024"]
[Site "Budapest"]
[Date "2024.09.12"]
[Round "2.66"]
[White "Fabri, Henrik"]
[Black "Omar, Aden Omar"]
[Result "0-1"]
[ECO "C02"]
[WhiteElo "1936"]
[BlackElo "1779"]
[Annotator "NA"]
[PlyCount "118"]
[EventDate "2024.09.05"]
[EventType "team-tourn"]
[EventCountry "HUN"]
[SourceTitle "playchess.com"]
[Source "ChessBase"]
[SourceQuality "1"]
[WhiteTeam "Isle of Man"]
[BlackTeam "Djibouti"]
[WhiteTeamCountry "IOM"]
[BlackTeamCountry "DJI"]
[TimeControl "40/5400+30:1800+30"]

1. e4 e6 2. d4 d5 3. e5 c5 4. c3 Nc6 5. Nf3 Qb6 6. Bd3 Bd7 7. O-O cxd4 8. cxd4 Nxd4 9. Nbd2 Bc5 10. Nxd4 Bxd4 11. Nf3 Bc5 12. a3 a5 13. b3 Bb5 14. Bf4 Ne7 15. b4 axb4 16. axb4 Rxa1 17. Bxb5+ Qxb5 18. Qxa1 Bb6 19. Be3 O-O 20. Bxb6 Qxb6 21. Qb2 Nc6 22. Rb1 f6 23. exf6 Rxf6 24. b5 Na5 25. Ra1 Nc4 26. Ra8+ Rf8 27. Qa1 Qxb5 28. h3 Qb2 29. Rxf8+ Kxf8 30. Qa8+ Ke7 31. Qc8 Qb4 32. Qc7+ Kf6 33. Qf4+ Ke7 34. Qg5+ Kf8 35. Qd8+ Kf7 36. Qd7+ Kf6 37. g4 Qe7 38. g5+ Kf7 39. Qc8 b5 40. Qh8 Kg6 41. h4 h5 42. gxh6 gxh6 43. Qg8+ Kh5 44. Kh2 Qd7 45. Kg3 e5 46. Nh2 Nd6 47. f3 Nf5+ 48. Kf2 Qa7+ 49. Kg2 Qg7+ 50. Qxg7 Nxg7 51. Ng4 b4 52. Nxe5 b3 53. Nd3 Kxh4 54. Kf2 Ne6 55. Ke3 Kg3 56. f4 d4+ 57. Ke4 Nc5+ 58. Kxd4 Nxd3 59. Kxd3 Kxf4 0-1

[Event "45th FIDE Olympiad 2024"]
[Site "Budapest"]
[Date "2024.09.12"]
[Round "2.67"]
[White "Hovhannisyan, Robert"]
[Black "De La Riva Aguado, Oscar"]
[Result "1/2-1/2"]
[ECO "C13"]
[WhiteElo "2619"]
[BlackElo "2431"]
[Annotator "TA"]
[PlyCount "42"]
[EventDate "2024.09.05"]
[EventType "team-tourn"]
[EventCountry "HUN"]
[SourceTitle "playchess.com"]
[Source "ChessBase"]
[SourceQuality "1"]
[WhiteTeam "Armenia"]
[BlackTeam "Andorra"]
[WhiteTeamCountry "ARM"]
[BlackTeamCountry "AND"]
[TimeControl "40/5400+30:1800+30"]

{[%evp 12,42,43,15,17,13,10,10,12,13,22,23,27,23,31,22,38,24,12,31,42,-7,0,-32,-29,-56,-50,-85,0,-33,0,-72,0]} 1. e4 e6 2. d4 d5 3. Nc3 Nf6 4. Bg5 dxe4 5. Nxe4 Nbd7 6. Nf3 h6 7. Bxf6 Nxf6 8. Bd3 Nxe4 9. Bxe4 c5 {The position is equal.} 10. Qe2 Qa5+ 11. c3 cxd4 12. Nxd4 Qb6 13. Nf3 Be7 14. O-O-O Bf6 {Repels Ne5} 15. Nd2 O-O 16. h4 (16. Bc2 $14) 16... Bd7 $11 17. Bc2 {[#] Ne4 would now be deadly.} Rfd8 18. Ne4 Be7 {Inhibits Rd6.} 19. Nd2 Bf6 (19... Bc6 $17 {[%cal Oa8c8]} 20. Nf3 Bd5) 20. Ne4 $15 Be7 {Dodges Rd6} 21. Nd2 Bf6 {Weighted Error Value: White=0.14 (very precise) /Black=0.12 (very precise) .  Mistake:       	White=1     	Black=2      Inaccurate:     	White=3     	---        OK:         	White=2     	Black=7      Best:        	White=3     	---} ({Better is} 21... Bc6 $17 22. Nf3 Bd5) 1/2-1/2

[Event "45th FIDE Olympiad 2024"]
[Site "Budapest"]
[Date "2024.09.12"]
[Round "2.67"]
[White "Mohamed, Ali Dima"]
[Black "Ormsby, Alan"]
[Result "1-0"]
[ECO "B90"]
[WhiteElo "1761"]
[BlackElo "1914"]
[Annotator "NA"]
[PlyCount "83"]
[EventDate "2024.09.05"]
[EventType "team-tourn"]
[EventCountry "HUN"]
[SourceTitle "playchess.com"]
[Source "ChessBase"]
[SourceQuality "1"]
[WhiteTeam "Djibouti"]
[BlackTeam "Isle of Man"]
[WhiteTeamCountry "DJI"]
[BlackTeamCountry "IOM"]
[TimeControl "40/5400+30:1800+30"]

1. e4 c5 2. Nf3 d6 3. d4 cxd4 4. Nxd4 Nf6 5. Nc3 a6 6. h3 e6 7. Bg5 Be7 8. Be2 Nc6 9. Nf3 O-O 10. Qd2 Qc7 11. a3 b5 12. Rd1 Rd8 13. O-O Bb7 14. Be3 Rac8 15. Bd3 Ne5 16. Nxe5 dxe5 17. Qe2 h6 18. f3 Bc5 19. Nb1 Nh5 20. Qf2 Bxe3 21. Qxe3 Nf4 22. Nc3 Qe7 23. Ne2 Nxe2+ 24. Bxe2 Rxc2 25. b4 Rd4 26. Rc1 Rxc1 27. Rxc1 Qd6 28. Qc3 Rd2 29. Bf1 Qb6+ 30. Kh1 Qd6 31. Qc7 Rd1 32. Qxd6 Rxd6 33. Rc7 Bc6 34. Rc8+ Kh7 35. Kg1 g5 36. Kf2 Kg6 37. Ke3 Bd7 38. Rc7 Rd4 39. Bd3 f5 40. exf5+ exf5 41. g4 Rd6 42. Rxd7 1-0

[Event "45th FIDE Olympiad 2024"]
[Site "Budapest"]
[Date "2024.09.12"]
[Round "2.68"]
[White "Ribera Veganzones, Serni"]
[Black "Grigoryan, Karen H."]
[Result "0-1"]
[ECO "B42"]
[WhiteElo "2309"]
[BlackElo "2569"]
[Annotator "TA"]
[PlyCount "76"]
[EventDate "2024.09.05"]
[EventType "team-tourn"]
[EventCountry "HUN"]
[SourceTitle "playchess.com"]
[Source "ChessBase"]
[SourceQuality "1"]
[WhiteTeam "Andorra"]
[BlackTeam "Armenia"]
[WhiteTeamCountry "AND"]
[BlackTeamCountry "ARM"]
[TimeControl "40/5400+30:1800+30"]

{[%evp 15,76,58,101,59,72,56,56,36,58,43,43,35,43,41,52,53,55,21,25,18,38,4,39,10,31,11,21,0,42,20,47,22,16,22,25,0,0,0,-1,-14,-2,-37,0,-19,-12,-58,-9,-20,0,0,16,0,0,0,0,0,0,-53,0,-133,-142,-295,-295]} 1. e4 c5 2. Nf3 e6 3. d4 cxd4 4. Nxd4 a6 5. Bd3 Nf6 6. O-O Qc7 7. c4 d6 8. Nc3 g6 9. h3 Bg7 10. Nf3 O-O 11. Bf4 {White is slightly better.} b6 12. Rc1 Bb7 13. Re1 Rd8 14. Bf1 Ne8 15. b4 {[%cal Oc4c5]} Nd7 16. Qb3 Rac8 17. Na4 {[%cal Oc4c5]} Qb8 18. Nd2 Ba8 {[%cal Bb7a8,Ba8c6,Bc6b5][%mdl 32]} 19. Nc3 Rc7 20. Rc2 Rdc8 21. Rec1 h6 22. a3 Kh7 23. Na4 Bc6 24. Be3 b5 25. cxb5 Bxb5 26. Rxc7 Rxc7 27. Rxc7 Qxc7 28. Nb2 Nef6 29. Bxb5 axb5 30. a4 (30. Nd1 $11 {might be stronger.}) 30... bxa4 (30... Qc1+ $15 31. Kh2 bxa4 32. Nxa4 d5 33. exd5 Nxd5) 31. Nxa4 $11 d5 32. b5 {[%cal Bb4b5,Bb5b6][%mdl 32]} dxe4 33. b6 Qc1+ 34. Nf1 Qc6 35. b7 {[%cal Oa4c5]} Nd5 36. Ba7 (36. b8=R $2 Nxb8 37. Qxb8 Qxa4 $19) (36. Nc5 $11 Nb8 37. Nxe4) 36... Be5 (36... Nf4 $1 $15 37. Be3 (37. b8=R $2 {too greedy.} Nxb8 38. Be3 Ne2+ 39. Kh2 Nd7 $19) (37. b8=B $2 {loses.} Ne2+ 38. Kh2 Qc1 $19) 37... Ne2+ 38. Kh1 Nc1) 37. Nb2 (37. g3 $1 $11 {remains equal.}) 37... N5b6 $17 {Black is more active.} 38. g3 $2 {[#]} (38. Bxb6 $17 {was called for.} Nxb6 39. Na4 Nxa4 40. b8=Q Bxb8 41. Qxb8) 38... Qxb7 {Weighted Error Value: White=0.32/Black=0.18 (very precise) .  Mistake:       	White=4     	Black=2      Inaccurate:     	White=4     	Black=4      OK:         	---       	Black=8      Best:        	White=1     	Black=1} 0-1

[Event "45th FIDE Olympiad 2024"]
[Site "Budapest"]
[Date "2024.09.12"]
[Round "2.69"]
[White "Romanov, Evgeny"]
[Black "Deac, Bogdan-Daniel"]
[Result "1/2-1/2"]
[ECO "A13"]
[WhiteElo "2567"]
[BlackElo "2680"]
[Annotator "TA"]
[PlyCount "112"]
[EventDate "2024.09.05"]
[EventType "team-tourn"]
[EventCountry "HUN"]
[SourceTitle "playchess.com"]
[Source "ChessBase"]
[SourceQuality "1"]
[WhiteTeam "North Macedonia"]
[BlackTeam "Romania"]
[BlackTeamCountry "ROU"]
[TimeControl "40/5400+30:1800+30"]

{[%evp 38,112,42,21,16,17,26,25,35,20,14,18,16,18,20,18,27,0,0,0,0,0,0,0,0,0,10,16,19,23,17,16,12,10,16,0,142,60,79,54,56,21,114,99,190,20,152,177,156,40,34,54,37,48,50,0,0,0,0,0,0,0,0,0,0,0,0,-4,0,0,0,0,0,0,0,0,0]} 1. c4 e6 2. g3 d5 3. Bg2 Nf6 4. Nf3 d4 5. d3 Nc6 6. O-O Bc5 {A13: English Opening: 1...e6.} 7. Nbd2 a5 8. Nb3 Be7 9. e3 dxe3 10. Bxe3 O-O 11. Nbd4 Bd7 12. Nb5 e5 13. h3 $146 ({Predecessor:} 13. Qe2 Re8 14. Rfd1 Qc8 15. a3 h6 16. Re1 Bf8 17. Qc2 Nd8 18. Bd2 c6 19. Nc3 {½-½ Vidit,S (2727)-Seo,J (2455) Titled Tuesday intern op 16th Apr Early blitz 2024 (11)}) 13... Qc8 14. Kh2 Rd8 15. Qe2 Re8 16. Rfd1 h6 17. Qf1 Bf8 18. Rac1 Nb4 19. Nc3 c5 20. Nd2 Bc6 21. Nde4 Nd7 22. g4 Qd8 23. a3 Na6 24. f4 exf4 25. Bxf4 Nc7 26. Bg3 Ne6 27. Rc2 Be7 28. Rf2 Bh4 29. Nd5 Bxg3+ 30. Nxg3 Ne5 31. Nf5 Nc7 32. d4 cxd4 33. Rxd4 Nxd5 34. cxd5 Bd7 35. d6 Qb6 36. Rfd2 Ng6 (36... Bxf5 $1 $11 37. gxf5 (37. Qxf5 Rad8 $11) 37... Rad8) 37. Qf2 (37. Bd5 $1 $16 Be6 38. Qd3) 37... Re5 38. Ne3 Re6 39. Nc4 Qb5 (39... Qa6 $1 $11) 40. a4 $16 Qc5 {[#]} (40... Qg5 $16) 41. Rf4 $2 (41. Bd5 $1 $18 {[%mdl 512]}) 41... Qxf2 (41... Qb4 $1 $11 42. Rfd4 (42. Rxf7 Qxc4 43. Rxd7 Rf8 $16) 42... Rf6) 42. Rfxf2 $16 Ne5 43. Bxb7 (43. Bd5 $16 Nxc4 44. Bxc4) 43... Nxc4 $14 44. Bxa8 Nxd2 45. Rxd2 Kf8 {[#]} 46. b4 ({White should play} 46. b3 $1 $14) 46... axb4 $11 47. a5 Re3 48. Rb2 Ra3 49. Rxb4 g6 50. Rb8+ Kg7 51. Rd8 Rxa5 52. Bg2 Ra7 53. Bd5 Kf6 54. Kg3 Be6 55. Bxe6 Kxe6 56. Rh8 Ke5 1/2-1/2

[Event "45th FIDE Olympiad 2024"]
[Site "Budapest"]
[Date "2024.09.12"]
[Round "2.69"]
[White "Gabriel, Davidson"]
[Black "Enemchukwu, Chinedu Benjamin"]
[Result "1-0"]
[ECO "A22"]
[WhiteElo "2043"]
[BlackElo "2001"]
[Annotator "NA"]
[PlyCount "81"]
[EventDate "2024.09.05"]
[EventType "team-tourn"]
[EventCountry "HUN"]
[SourceTitle "playchess.com"]
[Source "ChessBase"]
[SourceQuality "1"]
[WhiteTeam "Haiti"]
[BlackTeam "Saint Vincent and the Grenadines"]
[WhiteTeamCountry "HAI"]
[TimeControl "40/5400+30:1800+30"]

1. c4 e5 2. Nc3 Nf6 3. g3 d5 4. cxd5 Nxd5 5. Bg2 Be6 6. Qb3 Nb6 7. Qb5+ c6 8. Qxe5 N8d7 9. Qe4 Nf6 10. Qc2 Qd7 11. d3 Bd6 12. Bg5 Nfd5 13. a3 h6 14. Bd2 O-O 15. Nf3 Bh3 16. O-O Bxg2 17. Kxg2 f5 18. Nxd5 Nxd5 19. e4 fxe4 20. dxe4 Nb6 21. Nh4 Qe6 22. Bc3 Rae8 23. Rae1 Be7 24. Nf5 Bf6 25. Bb4 c5 26. Qxc5 Rc8 27. Qb5 Rfd8 28. Qe2 Nc4 29. Qg4 Kf7 30. Bc3 Ne5 31. Bxe5 Bxe5 32. Re2 Rc4 33. f4 Bf6 34. e5 Re8 35. Nd6+ Kf8 36. Qxe6 Rxe6 37. Nxc4 Be7 38. Rd1 Rc6 39. Nd6 b6 40. Rdd2 g6 41. Rc2 1-0